bitfinex-derivatives/quotes_BTCF0:USTF0_20240815
["timestamp","ask_amount","ask_price","bid_price","bid_amount"]
[1723747495885,1.2422529,57998.0,57997.0,3.58852649]
[1723747496089,1.54557001,57998.0,57997.0,3.58852649]
[1723747496386,1.67151289,57998.0,57997.0,3.31262473]
[1723747496593,1.27151289,57998.0,57997.0,3.31262473]
[1723747497093,1.75770989,57998.0,57997.0,3.31262473]
[1723747497282,1.75770989,57998.0,57997.0,2.95050741]
[1723747497283,1.71550937,57998.0,57997.0,2.95050741]
[1723747497484,1.31550937,57998.0,57997.0,2.95050741]
[1723747498488,1.33045715,57998.0,57997.0,2.95050741]
[1723747498888,1.33045715,57998.0,57997.0,3.03670541]
[1723747498889,0.81317715,57998.0,57997.0,3.03670541]
[1723747499204,0.62583537,57998.0,57997.0,3.03670541]
[1723747499292,0.36618015,57998.0,57997.0,3.03670541]
[1723747499695,0.36616675,57998.0,57997.0,3.03670541]
[1723747499899,0.35121897,57998.0,57997.0,2.95050741]
[1723747500192,0.45236375,57998.0,57997.0,2.95050741]
[1723747500382,0.81316375,57998.0,57997.0,2.96080065]
[1723747500586,0.81316375,57998.0,57997.0,6.73280065]
[1723747500989,1.73044375,57998.0,57997.0,2.95250741]
[1723747501187,1.873685,57998.0,57997.0,2.95150741]
[1723747501383,1.959882,57998.0,57997.0,2.94850741]
[1723747501614,1.99544075,57998.0,57997.0,2.94850741]
[1723747501834,1.473685,57998.0,57997.0,2.94850741]
[1723747502299,1.74871751,57998.0,57997.0,2.67258002]
[1723747502692,2.14871751,57998.0,57997.0,2.67358002]
[1723747502892,1.32553148,57998.0,57997.0,2.67458002]
[1723747503290,1.32553148,57998.0,57997.0,2.39746782]
[1723747504298,1.01739587,57998.0,57997.0,2.48311367]
[1723747504503,1.41739587,57998.0,57997.0,2.48311367]
[1723747504799,1.41739587,57998.0,57997.0,2.39734782]
[1723747504990,1.50359287,57998.0,57997.0,2.39734782]
[1723747505187,1.41739587,57998.0,57997.0,2.39734782]
[1723747505389,1.51359287,57998.0,57997.0,2.35003618]
[1723747505592,1.50359287,57998.0,57997.0,2.28129282]
[1723747505793,1.41739587,57998.0,57997.0,1.62472382]
[1723747505986,1.50359287,57998.0,57997.0,1.62472382]
[1723747506187,1.41739587,57998.0,57997.0,1.62466382]
[1723747506501,1.51359287,57998.0,57997.0,1.62466382]
[1723747506908,1.51359287,57998.0,57997.0,1.57430626]
[1723747507101,1.51359287,57998.0,57992.0,0.05152989]
[1723747507102,0.3608,57993.0,57992.0,0.05152989]
[1723747507316,0.08623,57976.0,57975.0,0.06040893]
[1723747507597,0.08623,57976.0,57962.0,0.12849163]
[1723747507598,0.172462,57975.0,57974.0,0.06872123]
[1723747507789,0.086231,57975.0,57974.0,0.06872615]
[1723747507989,0.086247,57964.0,57963.0,0.10277502]
[1723747508196,0.086225,57980.0,57963.0,0.10277502]
[1723747508197,0.3608,57974.0,57963.0,1.00974261]
[1723747508407,0.086215,57986.0,57985.0,0.086216]
[1723747508896,0.086215,57986.0,57985.0,0.13133739]
[1723747509243,0.086215,57986.0,57985.0,0.23429689]
[1723747509494,0.086215,57986.0,57985.0,0.13133739]
[1723747509702,0.086215,57986.0,57977.0,0.1029595]
[1723747509703,0.91736,57986.0,57977.0,0.1029595]
[1723747509897,0.91736,57986.0,57974.0,1.00768]
[1723747509898,0.172462,57975.0,57974.0,0.3382]
[1723747510083,0.086228,57977.0,57976.0,0.086228]
[1723747510494,0.086228,57977.0,57976.0,0.00025872]
[1723747510495,0.172456,57977.0,57976.0,0.00025872]
[1723747510795,1.089896,57977.0,57976.0,0.00025872]
[1723747510991,1.176124,57977.0,57976.0,0.00025872]
[1723747511207,1.176124,57977.0,57976.0,7.2e-07]
[1723747511395,0.086236,57972.0,57971.0,0.05149114]
[1723747511596,0.172474,57971.0,57970.0,0.0514936]
[1723747511804,0.172474,57971.0,57968.0,0.06865753]
[1723747511805,0.1788,57971.0,57968.0,0.06865753]
[1723747511986,0.172486,57967.0,57966.0,0.06865753]
[1723747512187,0.69636,57967.0,57962.0,0.06865753]
[1723747512393,0.17251,57959.0,57958.0,0.06865753]
[1723747512692,0.782655,57959.0,57958.0,0.06865753]
[1723747513096,0.086258,57957.0,57956.0,0.06865753]
[1723747513349,0.447058,57957.0,57956.0,0.06865753]
[1723747513489,0.086259,57956.0,57955.0,0.42475753]
[1723747513899,0.172524,57954.0,57953.0,0.00025872]
[1723747514199,0.619586,57954.0,57953.0,0.00025872]
[1723747514504,0.964702,57954.0,57953.0,0.00025872]
[1723747514804,1.450964,57954.0,57953.0,0.00025872]
[1723747515045,1.450964,57954.0,57940.0,0.05140437]
[1723747515046,0.08628,57942.0,57940.0,0.05140437]
[1723747515199,0.3608,57941.0,57940.0,0.315]
[1723747516000,0.36100194,57941.0,57940.0,0.315]
[1723747516897,1.10246194,57941.0,57935.0,0.00025872]
[1723747517101,0.3608,57936.0,57935.0,0.00025872]
[1723747517308,0.964889,57936.0,57935.0,0.00025872]
[1723747517491,1.451178,57936.0,57935.0,0.00025872]
[1723747517697,1.451178,57936.0,57935.0,7.2e-07]
[1723747518115,1.364889,57936.0,57935.0,7.2e-07]
[1723747518411,0.3608,57936.0,57935.0,0.00100072]
[1723747519207,0.447089,57936.0,57935.0,0.00100072]
[1723747519400,1.051178,57936.0,57935.0,0.00100072]
[1723747519606,1.451178,57936.0,57935.0,0.00100072]
[1723747519906,1.451178,57936.0,57935.0,0.00076072]
[1723747520598,1.451178,57936.0,57920.0,0.3426]
[1723747520599,0.086311,57921.0,57920.0,0.3426]
[1723747520792,0.44729047,57921.0,57920.0,0.3426]
[1723747521106,0.67099047,57921.0,57920.0,0.3426]
[1723747521402,0.67099047,57921.0,57917.0,0.00014047]
[1723747521403,0.086316,57918.0,57917.0,0.00014047]
[1723747522705,0.087316,57918.0,57917.0,0.00914047]
[1723747523195,0.001,57918.0,57917.0,0.00914047]
[1723747523400,0.087316,57918.0,57917.0,0.00914047]
[1723747523599,0.088316,57918.0,57917.0,0.02314047]
[1723747523803,0.692592,57918.0,57917.0,0.02314047]
[1723747524308,1.092592,57918.0,57917.0,0.02314047]
[1723747524607,0.088316,57918.0,57917.0,0.02314047]
[1723747524840,0.605276,57918.0,57917.0,0.01414047]
[1723747524999,0.605276,57918.0,57917.0,0.01614047]
[1723747525703,0.087316,57918.0,57917.0,0.01614047]
[1723747525914,0.086316,57918.0,57917.0,0.00514047]
[1723747527308,0.604276,57918.0,57917.0,0.00514047]
[1723747528010,0.690592,57918.0,57917.0,0.00514047]
[1723747528204,1.004276,57918.0,57917.0,0.00514047]
[1723747528444,1.090592,57918.0,57917.0,0.00514047]
[1723747528903,1.004276,57918.0,57917.0,0.00514047]
[1723747529209,0.604276,57918.0,57917.0,0.00514047]
[1723747529421,1.090592,57918.0,57917.0,0.00514047]
[1723747529708,1.004276,57918.0,57917.0,0.00514047]
[1723747529895,0.58619947,57921.0,57917.0,0.00514047]
[1723747529896,0.36249947,57921.0,57917.0,0.00514047]
[1723747530097,0.36249947,57921.0,57920.0,0.086313]
[1723747530098,0.00017947,57921.0,57920.0,0.086313]
[1723747530811,0.00017947,57921.0,57917.0,0.00514047]
[1723747531117,0.00017947,57921.0,57920.0,0.086313]
[1723747531903,0.00117947,57921.0,57920.0,0.086313]
[1723747532303,0.00117947,57921.0,57920.0,0.400713]
[1723747532509,0.00117947,57921.0,57920.0,0.46925216]
[1723747532808,0.00117947,57921.0,57920.0,0.38293916]
[1723747533008,0.00117947,57921.0,57920.0,0.3144]
[1723747533201,0.00117947,57921.0,57920.0,0.38993916]
[1723747533202,0.00217947,57921.0,57920.0,0.38993916]
[1723747533603,0.08749047,57921.0,57920.0,0.3234]
[1723747533810,0.08649047,57921.0,57920.0,0.3164]
[1723747534020,0.75730147,57921.0,57920.0,0.002]
[1723747534619,0.67299047,57921.0,57920.0,0.002]
[1723747534918,0.086315,57919.0,57917.0,0.00014047]
[1723747535114,0.086316,57918.0,57917.0,0.00014047]
[1723747535510,0.36653948,57921.0,57920.0,0.086313]
[1723747535716,0.45129047,57921.0,57920.0,0.06816056]
[1723747536020,0.086313,57920.0,57917.0,0.00014047]
[1723747536202,0.086313,57920.0,57918.0,0.13148749]
[1723747536510,0.36597947,57921.0,57917.0,0.00014047]
[1723747536511,0.086316,57918.0,57917.0,0.00014047]
[1723747536820,0.086316,57918.0,57917.0,0.13163125]
[1723747537014,0.36697947,57921.0,57917.0,0.13163125]
[1723747537015,0.36397947,57921.0,57917.0,0.21794825]
[1723747537269,0.45029047,57921.0,57920.0,0.08537015]
[1723747537516,0.086314,57919.0,57918.0,0.08537015]
[1723747537703,0.086314,57919.0,57918.0,0.13149922]
[1723747538114,0.36097947,57921.0,57918.0,0.13149922]
[1723747538341,0.36097947,57921.0,57917.0,0.10309997]
[1723747538342,0.3868541,57921.0,57920.0,0.08541751]
[1723747538516,0.3015431,57921.0,57919.0,0.08541751]
[1723747538823,0.086314,57919.0,57918.0,0.08541751]
[1723747539011,0.086314,57919.0,57918.0,0.21691267]
[1723747539212,0.086314,57919.0,57918.0,0.13149516]
[1723747539719,0.087314,57919.0,57918.0,0.13149516]
[1723747540119,0.087314,57919.0,57918.0,0.29154622]
[1723747540719,0.086316,57918.0,57917.0,0.00014047]
[1723747540917,0.086316,57918.0,57917.0,0.29168729]
[1723747540918,0.869592,57918.0,57917.0,0.29168729]
[1723747541115,0.869592,57918.0,57917.0,0.13163549]
[1723747541357,0.783276,57918.0,57917.0,0.13163549]
[1723747541510,0.265316,57918.0,57917.0,0.13163549]
[1723747541713,0.783276,57918.0,57917.0,0.13163549]
[1723747541909,0.265316,57918.0,57917.0,0.13163549]
[1723747542323,0.27573601,57918.0,57917.0,0.29169804]
[1723747542510,0.27573601,57918.0,57917.0,0.13163549]
[1723747542714,0.086316,57918.0,57917.0,0.37801352]
[1723747543216,0.086316,57918.0,57917.0,0.60021886]
[1723747543519,0.086316,57918.0,57917.0,0.48031467]
[1723747544123,0.3005431,57921.0,57917.0,0.48031467]
[1723747544320,0.3608,57924.0,57918.0,0.61720756]
[1723747544519,0.5398,57924.0,57921.0,0.13703336]
[1723747544727,0.086308,57923.0,57922.0,0.4801742]
[1723747545118,0.54128,57924.0,57922.0,0.61714827]
[1723747545323,0.5398,57924.0,57923.0,0.48011491]
[1723747545521,0.3608,57924.0,57923.0,0.68680398]
[1723747545724,0.00148,57935.0,57934.0,0.086292]
[1723747546029,0.3608,57945.0,57934.0,1.45801939]
[1723747546326,0.3608,57945.0,57944.0,0.086277]
[1723747546518,0.086263,57954.0,57945.0,0.086276]
[1723747546721,0.086264,57953.0,57952.0,0.12034139]
[1723747546932,0.712328,57953.0,57952.0,0.29152223]
[1723747547118,1.630008,57953.0,57952.0,0.13148393]
[1723747547321,1.630008,57953.0,57952.0,0.23461772]
[1723747547322,1.230008,57953.0,57952.0,0.23461772]
[1723747547528,0.626064,57953.0,57952.0,0.13148393]
[1723747547822,0.265264,57953.0,57952.0,0.29146419]
[1723747548027,0.00025898,57955.0,57954.0,0.086262]
[1723747548229,0.00025898,57955.0,57954.0,0.32086237]
[1723747548624,0.01041076,57957.0,57954.0,0.21774593]
[1723747548826,0.086259,57957.0,57955.0,0.23452167]
[1723747549030,0.086259,57957.0,57956.0,0.13148393]
[1723747549227,0.086258,57957.0,57956.0,0.13141679]
[1723747549429,1.0470107,57957.0,57956.0,0.13141679]
[1723747549709,0.085984,57953.0,57952.0,0.002]
[1723747549859,0.533048,57953.0,57952.0,0.13342449]
[1723747550036,1.050728,57953.0,57952.0,0.13142449]
[1723747550327,0.446784,57953.0,57952.0,0.13142449]
[1723747550530,0.086267,57951.0,57950.0,0.085771]
[1723747550727,0.396234,57951.0,57950.0,0.085771]
[1723747550925,0.086268,57950.0,57949.0,0.085771]
[1723747551124,0.309967,57951.0,57949.0,0.1314289]
[1723747551125,0.2237,57951.0,57949.0,0.1314289]
[1723747551438,0.08627,57949.0,57948.0,0.08573658]
[1723747551632,0.086271,57948.0,57947.0,0.44653658]
[1723747551827,0.172542,57948.0,57947.0,0.49223007]
[1723747552031,0.690262,57948.0,57947.0,0.57796747]
[1723747552239,0.603991,57948.0,57947.0,0.3608]
[1723747552533,0.086271,57948.0,57947.0,0.3608]
[1723747552743,0.086271,57948.0,57947.0,0.4465374]
[1723747552931,0.086271,57948.0,57947.0,0.57796573]
[1723747553140,0.022,57951.0,57950.0,0.087268]
[1723747553330,0.01039731,57956.0,57951.0,0.086266]
[1723747553571,0.086265,57952.0,57951.0,0.437666]
[1723747553733,0.086262,57955.0,57953.0,0.086264]
[1723747554029,0.086262,57955.0,57954.0,0.68144177]
[1723747554236,0.086262,57955.0,57954.0,0.5784745]
[1723747554435,0.086256,57959.0,57954.0,0.57783358]
[1723747554736,0.086256,57959.0,57958.0,0.06849686]
[1723747554931,0.172512,57959.0,57958.0,0.06849686]
[1723747555132,0.086258,57957.0,57956.0,0.06849686]
[1723747555632,0.086259,57956.0,57955.0,0.06849686]
[1723747555939,0.086261,57955.0,57954.0,0.3608]
[1723747556355,0.086265,57952.0,57951.0,0.001]
[1723747556546,0.87844,57955.0,57950.0,0.06845255]
[1723747556547,0.086267,57951.0,57950.0,0.06845255]
[1723747556735,0.3608,57955.0,57948.0,0.06845255]
[1723747556736,0.08627,57949.0,57948.0,0.06845255]
[1723747556930,0.17254,57949.0,57948.0,0.06845255]
[1723747557143,0.086276,57945.0,57939.0,0.06845255]
[1723747557430,0.086276,57945.0,57938.0,0.05134901]
[1723747557431,0.17257,57939.0,57938.0,0.05134901]
[1723747557720,0.086289,57936.0,57932.0,0.05134901]
[1723747557833,0.447094,57933.0,57932.0,0.05134901]
[1723747558143,0.447094,57933.0,57931.0,0.05134901]
[1723747558144,0.086295,57932.0,57931.0,0.05134901]
[1723747558347,0.086298,57930.0,57929.0,0.06845255]
[1723747558544,0.086298,57930.0,57928.0,0.42385255]
[1723747558847,0.086303,57927.0,57924.0,0.06871153]
[1723747559038,0.2237,57929.0,57924.0,0.06871153]
[1723747559039,0.447105,57925.0,57924.0,0.06871153]
[1723747559237,0.447105,57925.0,57924.0,0.00025898]
[1723747559238,0.53341,57925.0,57924.0,0.00025898]
[1723747559450,1.45133,57925.0,57924.0,0.00025898]
[1723747559635,1.45133,57925.0,57917.0,0.00014047]
[1723747559636,0.086308,57923.0,57921.0,0.05138941]
[1723747559945,0.00120001,57925.0,57919.0,0.06845255]
[1723747560139,0.086307,57924.0,57923.0,0.05139099]
[1723747560340,0.086307,57924.0,57923.0,0.13769899]
[1723747560539,0.2237,57929.0,57924.0,0.086307]
[1723747560747,0.2237,57929.0,57925.0,0.13769599]
[1723747560748,0.086303,57927.0,57925.0,0.13769599]
[1723747561047,0.3608,57926.0,57924.0,0.05138754]
[1723747561256,0.447105,57926.0,57923.0,0.05138754]
[1723747561451,0.447105,57926.0,57922.0,0.08631]
[1723747561452,0.3608,57926.0,57922.0,0.05138754]
[1723747561657,0.08631,57922.0,57921.0,0.05138754]
[1723747562142,0.3608,57926.0,57920.0,0.05138754]
[1723747562143,0.086311,57921.0,57920.0,0.05138754]
[1723747562457,0.086314,57919.0,57918.0,0.00025898]
[1723747562748,0.172628,57919.0,57918.0,0.00025898]
[1723747563147,0.447114,57919.0,57912.0,0.05139022]
[1723747563356,0.086323,57913.0,57912.0,2.68e-06]
[1723747563644,0.447114,57919.0,57912.0,0.05139022]
[1723747563645,0.3608,57919.0,57912.0,0.05139022]
[1723747563850,0.002,57922.0,57921.0,0.086311]
[1723747564050,0.00216082,57922.0,57921.0,0.086311]
[1723747564243,0.08847082,57922.0,57921.0,0.086311]
[1723747564937,0.00216082,57922.0,57921.0,0.086311]
[1723747565140,0.00025898,57927.0,57921.0,0.086311]
[1723747565141,0.00025898,57927.0,57926.0,0.086304]
[1723747565344,0.5845,57942.0,57934.0,0.086292]
[1723747565345,0.2237,57942.0,57934.0,0.086292]
[1723747565646,0.086284,57940.0,57935.0,0.43809]
[1723747565864,0.2237,57949.0,57935.0,0.3518]
[1723747566157,0.30997,57949.0,57943.0,0.086279]
[1723747566354,0.086262,57954.0,57939.0,0.05136675]
[1723747566554,0.086264,57953.0,57942.0,0.05136675]
[1723747566761,0.00025898,57951.0,57944.0,0.05136675]
[1723747567056,0.00025898,57951.0,57945.0,0.05136675]
[1723747567241,0.00025898,57951.0,57946.0,0.086274]
[1723747567242,0.014,57947.0,57946.0,0.086274]
[1723747567444,0.086244,57967.0,57946.0,0.51772]
[1723747567646,0.086244,57967.0,57960.0,0.3608]
[1723747567849,0.086245,57966.0,57961.0,0.3325]
[1723747568192,0.2237,57969.0,57961.0,0.3325]
[1723747568364,0.2237,57969.0,57961.0,0.6933]
[1723747568543,0.01045075,57975.0,57969.0,0.08624]
[1723747568749,0.3608,57978.0,57966.0,0.3608]
[1723747568946,0.00025898,57971.0,57966.0,0.3608]
[1723747569146,0.086243,57967.0,57966.0,0.3608]
[1723747569345,0.00025898,57971.0,57966.0,0.3608]
[1723747569945,0.086238,57970.0,57969.0,0.013]
[1723747570346,0.00025898,57971.0,57969.0,0.09924]
[1723747570550,0.00025898,57971.0,57969.0,0.09224]
[1723747570737,0.00025898,57971.0,57969.0,0.006]
[1723747571451,0.00025898,57971.0,57970.0,0.086238]
[1723747572112,0.3608,57989.0,57970.0,0.086238]
[1723747572113,0.01041378,57987.0,57971.0,0.51748]
[1723747572222,0.086209,57990.0,57982.0,0.3608]
[1723747572396,0.086209,57990.0,57988.0,0.3608]
[1723747572890,0.086212,57988.0,57987.0,0.3608]
[1723747573740,0.22395874,57995.0,57987.0,0.3608]
[1723747573946,0.08621,57989.0,57988.0,0.001]
[1723747574764,0.08621,57989.0,57983.0,0.00025874]
[1723747574765,0.086218,57984.0,57983.0,7.4e-07]
[1723747575054,0.086218,57984.0,57964.0,0.3608]
[1723747575055,0.3608,57984.0,57964.0,0.3608]
[1723747575241,1.22200001,57988.0,57960.0,0.05125361]
[1723747575242,0.086246,57965.0,57960.0,0.05125361]
[1723747575751,0.086246,57965.0,57953.0,0.086264]
[1723747576493,0.086246,57965.0,57950.0,0.3608]
[1723747576494,0.086267,57951.0,57950.0,0.3608]
[1723747576631,0.086261,57955.0,57954.0,0.00025874]
[1723747578159,1.176423,57955.0,57954.0,7.4e-07]
[1723747578351,1.176423,57955.0,57935.0,0.05138894]
[1723747578352,0.086289,57936.0,57935.0,0.00013533]
[1723747578545,0.533378,57936.0,57935.0,0.00013533]
[1723747578741,1.364889,57936.0,57935.0,0.00013533]
[1723747579147,1.451178,57936.0,57935.0,0.00013533]
[1723747579355,1.451178,57936.0,57935.0,3.3e-07]
[1723747579566,1.451178,57936.0,57935.0,0.00400033]
[1723747580044,1.364889,57936.0,57935.0,0.00400033]
[1723747580271,0.44724363,57936.0,57935.0,3.3e-07]
[1723747580469,0.45124363,57936.0,57935.0,0.00100033]
[1723747580953,0.09044363,57936.0,57935.0,0.00100033]
[1723747581751,0.09044363,57936.0,57935.0,0.00200033]
[1723747581948,0.00015463,57936.0,57935.0,0.00200033]
[1723747582254,0.00315463,57936.0,57935.0,0.08729133]
[1723747582459,0.36105874,57941.0,57940.0,0.086283]
[1723747582755,0.00025874,57941.0,57940.0,0.086283]
[1723747583160,0.00025874,57941.0,57935.0,0.36080033]
[1723747583656,1e-08,57941.0,57940.0,0.087283]
[1723747583957,1e-08,57941.0,57940.0,0.001]
[1723747585051,0.08628201,57941.0,57940.0,0.001]
[1723747585250,0.08628201,57941.0,57935.0,0.00558697]
[1723747585251,0.172578,57936.0,57935.0,0.00558697]
[1723747585467,0.172594,57931.0,57930.0,0.00025874]
[1723747585760,0.533394,57931.0,57930.0,0.00025874]
[1723747585951,1.451274,57931.0,57930.0,0.00025874]
[1723747586152,0.533394,57931.0,57930.0,0.00025874]
[1723747586375,0.447097,57931.0,57930.0,0.00025874]
[1723747586563,0.533394,57931.0,57930.0,0.00025874]
[1723747586860,0.533394,57931.0,57930.0,0.00625874]
[1723747586861,1.051274,57931.0,57930.0,0.00625874]
[1723747587061,0.533394,57931.0,57930.0,0.00625874]
[1723747587454,1.051274,57931.0,57930.0,0.00625874]
[1723747588262,0.447097,57931.0,57930.0,0.00625874]
[1723747588463,1.051274,57931.0,57930.0,0.00625874]
[1723747588649,0.964977,57931.0,57930.0,0.01125874]
[1723747588854,0.447097,57931.0,57930.0,0.01125874]
[1723747589472,1.051274,57931.0,57930.0,0.01125874]
[1723747591579,0.533394,57931.0,57930.0,0.01125874]
[1723747591882,1.051274,57931.0,57930.0,0.01125874]
[1723747592260,0.08632,57915.0,57914.0,0.3579]
[1723747592463,0.3608,57917.0,57912.0,2.68e-06]
[1723747592665,0.3608,57931.0,57916.0,0.086319]
[1723747592666,0.447104,57926.0,57916.0,0.086319]
[1723747593261,0.3608,57921.0,57919.0,0.086314]
[1723747593568,0.086306,57925.0,57915.0,0.000259]
[1723747593755,0.3608,57926.0,57915.0,0.000259]
[1723747593955,0.3608,57941.0,57940.0,0.086283]
[1723747594167,0.3608,57941.0,57925.0,0.3608]
[1723747594168,0.3608,57941.0,57933.0,0.3608]
[1723747594358,0.086284,57940.0,57933.0,0.3608]
[1723747594667,0.086288,57937.0,57933.0,0.3608]
[1723747594856,0.086289,57936.0,57933.0,0.447093]
[1723747595868,0.172584,57934.0,57933.0,0.3608]
[1723747596166,0.01023483,57938.0,57933.0,0.001]
[1723747596365,0.000259,57940.0,57936.0,0.086283]
[1723747596559,0.000259,57940.0,57933.0,0.001]
[1723747596759,0.08628,57939.0,57933.0,0.001]
[1723747596959,0.08628,57939.0,57933.0,0.088288]
[1723747597568,0.000259,57940.0,57933.0,0.087288]
[1723747597767,0.000259,57940.0,57939.0,0.447079]
[1723747597964,0.3608,57952.0,57939.0,0.3608]
[1723747598164,0.3608,57966.0,57950.0,0.3608]
[1723747598364,0.086252,57957.0,57955.0,0.3608]
[1723747598596,0.086254,57956.0,57955.0,0.3608]
[1723747598765,0.3608,57964.0,57955.0,0.3608]
[1723747599281,0.086254,57956.0,57955.0,0.3608]
[1723747599478,0.000259,57961.0,57951.0,0.3738]
[1723747599479,0.04312155,57952.0,57951.0,0.3738]
[1723747599826,0.002,57957.0,57951.0,0.3738]
[1723747599827,0.086254,57956.0,57951.0,0.3738]
[1723747599965,0.086255,57955.0,57954.0,0.3608]
[1723747600472,0.08626,57952.0,57951.0,0.3738]
[1723747600770,0.086257,57954.0,57951.0,0.3738]
[1723747600962,0.086257,57954.0,57951.0,0.3788]
[1723747601659,0.000259,57961.0,57951.0,0.3768]
[1723747601859,0.000259,57961.0,57958.0,0.3608]
[1723747602069,0.086249,57959.0,57958.0,0.3608]
[1723747602365,0.000259,57961.0,57954.0,0.001]
[1723747602366,0.086255,57955.0,57954.0,0.001]
[1723747602569,0.01053317,57961.0,57954.0,0.001]
[1723747602870,0.086249,57959.0,57953.0,0.086258]
[1723747603068,0.086249,57960.0,57957.0,0.086252]
[1723747603268,0.000259,57961.0,57952.0,0.3608]
[1723747603577,0.086253,57957.0,57952.0,0.3608]
[1723747603756,0.086506,57961.0,57952.0,0.3608]
[1723747603957,0.001259,57961.0,57958.0,0.08625]
[1723747604167,0.001259,57961.0,57955.0,0.05116356]
[1723747604466,0.001259,57961.0,57952.0,0.3608]
[1723747604467,0.001259,57961.0,57960.0,0.13741156]
[1723747604867,0.000259,57961.0,57960.0,0.13759656]
[1723747605678,0.086246,57962.0,57959.0,0.05134856]
[1723747605869,0.086246,57962.0,57958.0,0.086249]
[1723747606065,0.086246,57962.0,57958.0,0.13759756]
[1723747606373,0.086246,57962.0,57957.0,0.3608]
[1723747606374,0.086251,57958.0,57957.0,0.3608]
[1723747606575,0.086251,57958.0,57952.0,0.37103853]
[1723747606576,0.4,57958.0,57952.0,0.06821808]
[1723747606800,0.086264,57949.0,57946.0,0.05134281]
[1723747607071,0.086269,57946.0,57945.0,0.3608]
[1723747607469,0.3608,57956.0,57946.0,0.086268]
[1723747608077,0.3608,57956.0,57946.0,0.093268]
[1723747608267,0.3608,57956.0,57946.0,0.007]
[1723747608472,0.086267,57947.0,57946.0,0.007]
[1723747609171,0.172534,57947.0,57946.0,0.014]
[1723747609479,0.533294,57947.0,57946.0,0.014]
[1723747609674,0.086273,57943.0,57940.0,0.36105878]
[1723747609863,0.086273,57943.0,57941.0,0.086275]
[1723747610064,0.086276,57941.0,57940.0,0.36105878]
[1723747610264,0.086276,57941.0,57940.0,0.41240159]
[1723747610600,0.172552,57941.0,57940.0,0.41240159]
[1723747610775,0.086276,57941.0,57940.0,0.41240159]
[1723747611472,0.086276,57941.0,57940.0,0.42540159]
[1723747612075,0.086272,57944.0,57940.0,0.42540159]
[1723747612076,0.086271,57945.0,57940.0,1.27881878]
[1723747612278,0.086231,57972.0,57963.0,0.086243]
[1723747612483,0.3608,57974.0,57964.0,0.00849827]
[1723747612774,0.3608,57974.0,57964.0,0.447041]
[1723747612975,0.086234,57970.0,57964.0,0.086241]
[1723747613185,0.3608,57974.0,57963.0,0.05136967]
[1723747613381,0.08624,57966.0,57963.0,0.086242]
[1723747613776,0.3608,57973.0,57964.0,0.001]
[1723747613969,0.003,57974.0,57966.0,0.3608]
[1723747614372,0.086237,57967.0,57966.0,0.3608]
[1723747614575,0.003,57974.0,57963.0,0.00125878]
[1723747614576,0.086242,57964.0,57963.0,0.00125878]
[1723747615386,0.172484,57964.0,57963.0,0.00125878]
[1723747615716,0.086257,57954.0,57950.0,0.05136967]
[1723747615985,0.086261,57951.0,57946.0,0.05136967]
[1723747616173,0.3608,57955.0,57944.0,0.05136967]
[1723747616373,0.086271,57944.0,57943.0,0.3608]
[1723747616570,0.447071,57944.0,57940.0,0.05158467]
[1723747616779,0.086276,57941.0,57940.0,0.000215]
[1723747618876,0.087276,57941.0,57940.0,0.42538467]
[1723747619075,0.173552,57941.0,57940.0,0.013215]
[1723747619284,0.173552,57941.0,57940.0,0.027215]
[1723747619471,0.534352,57941.0,57940.0,0.027215]
[1723747620279,1.538388,57941.0,57940.0,0.027215]
[1723747620486,1.54837673,57941.0,57940.0,0.027215]
[1723747620875,0.5178,57940.0,57938.0,7.8e-07]
[1723747621184,0.258837,57939.0,57938.0,7.8e-07]
[1723747621384,1.139837,57939.0,57938.0,7.8e-07]
[1723747621580,0.00108,57940.0,57939.0,0.086279]
[1723747621886,0.3608,57945.0,57944.0,0.086272]
[1723747622081,0.36099955,57945.0,57944.0,0.086272]
[1723747622883,0.08646955,57945.0,57944.0,0.05143709]
[1723747623088,0.08646955,57945.0,57944.0,0.05143714]
[1723747623280,0.08646955,57945.0,57939.0,0.013]
[1723747623281,0.087277,57940.0,57939.0,0.013]
[1723747623580,0.620631,57940.0,57939.0,0.013]
[1723747623785,1.538431,57940.0,57939.0,0.013]
[1723747623986,1.452154,57940.0,57939.0,0.013]
[1723747624289,1.538431,57940.0,57939.0,0.013]
[1723747624492,0.0863,57925.0,57924.0,0.05143714]
[1723747624682,0.0863,57925.0,57917.0,0.4497726]
[1723747624683,0.00016309,57925.0,57922.0,0.05143714]
[1723747624979,0.00016309,57925.0,57917.0,0.37476971]
[1723747624980,0.00016309,57925.0,57918.0,0.13774714]
[1723747625185,0.00016309,57925.0,57919.0,0.05143714]
[1723747625383,0.086309,57919.0,57918.0,0.08631]
[1723747626191,0.086306,57922.0,57921.0,0.086305]
[1723747626486,0.00025878,57924.0,57923.0,0.086303]
[1723747626692,0.00025878,57924.0,57923.0,0.65567127]
[1723747626982,0.08655978,57924.0,57923.0,0.05144827]
[1723747627184,0.086303,57923.0,57922.0,0.05144827]
[1723747627493,0.00025878,57924.0,57922.0,0.05144827]
[1723747627690,0.00025878,57924.0,57922.0,0.05141463]
[1723747627877,0.00025878,57924.0,57923.0,0.086303]
[1723747628085,0.086275,57942.0,57931.0,0.086291]
[1723747628282,0.086275,57942.0,57931.0,0.3608]
[1723747628505,0.3608,57951.0,57931.0,0.3608]
[1723747628506,0.3608,57951.0,57937.0,0.05141349]
[1723747628788,1.10560001,57957.0,57946.0,0.086268]
[1723747628789,0.086265,57949.0,57946.0,0.086268]
[1723747629086,0.72370001,57957.0,57943.0,0.05141349]
[1723747629087,0.3608,57957.0,57949.0,0.086263]
[1723747629276,0.3608,57957.0,57948.0,0.3608]
[1723747629277,0.086263,57950.0,57948.0,0.3608]
[1723747629475,0.086264,57949.0,57948.0,0.3608]
[1723747630284,0.086264,57949.0,57945.0,0.086269]
[1723747630587,0.08627,57945.0,57944.0,0.05141349]
[1723747630786,0.086273,57943.0,57942.0,0.00025878]
[1723747630980,0.172546,57943.0,57942.0,0.00025878]
[1723747631179,0.172566,57936.0,57935.0,0.01016098]
[1723747631386,0.086283,57936.0,57935.0,0.01016098]